[Event "*** Titled Tuesday Blitz"]
[Site "Chess.com"]
[Date "2020.04.21"]
[Round "8"]
[White "Oligan22"]
[Black "Unknown_IM"]
[Result "1-0"]
[WhiteElo "2451"]
[BlackElo "2543"]
[TimeControl "180+1"]
[EndTime "11:39:19 PDT"]
[Termination "Oligan22 won by resignation"]

1. e4 {[%clk 0:03:00.9]} 1... c5 {[%clk 0:03:00]} 2. Nf3 {[%clk 0:03:00.8]} 2...
e6 {[%clk 0:02:59.4]} 3. d4 {[%clk 0:03:01]} 3... cxd4 {[%clk 0:03:00.3]} 4.
Nxd4 {[%clk 0:03:01.7]} 4... Nf6 {[%clk 0:03:00.9]} 5. Nc3 {[%clk 0:03:01.9]}
5... Nc6 {[%clk 0:03:01.5]} 6. Nxc6 {[%clk 0:02:59.1]} 6... bxc6 {[%clk
0:03:02.4]} 7. e5 {[%clk 0:02:59.6]} 7... Nd5 {[%clk 0:03:02.6]} 8. Ne4 {[%clk
0:02:59.9]} 8... Qc7 {[%clk 0:03:02.6]} 9. f4 {[%clk 0:03:00]} 9... Qb6 {[%clk
0:03:02.7]} 10. c4 {[%clk 0:03:00.3]} 10... Bb4+ {[%clk 0:02:57.4]} 11. Ke2
{[%clk 0:02:58.8]} 11... f5 {[%clk 0:02:57]} 12. exf6 {[%clk 0:02:54.5]} 12...
Nxf6 {[%clk 0:02:55.4]} 13. Be3 {[%clk 0:02:52.9]} 13... Qd8 {[%clk 0:02:54.2]}
14. Nd6+ {[%clk 0:02:52.5]} 14... Bxd6 {[%clk 0:02:53.3]} 15. Qxd6 {[%clk
0:02:53.4]} 15... Bb7 {[%clk 0:02:53.1]} 16. Rd1 {[%clk 0:02:44.1]} 16... c5
{[%clk 0:02:45.7]} 17. Qxc5 {[%clk 0:02:35.4]} 17... Ne4 {[%clk 0:02:42.1]} 18.
Qd4 {[%clk 0:02:26.8]} 18... Qe7 {[%clk 0:01:45.1]} 19. Kd3 {[%clk 0:02:22.1]}
19... Rc8 {[%clk 0:01:35.3]} 20. Kc2 {[%clk 0:02:21.2]} 20... d5 {[%clk
0:01:28]} 21. Kb1 {[%clk 0:02:15]} 21... O-O {[%clk 0:01:26.8]} 22. Bd3 {[%clk
0:02:08.6]} 22... Nf6 {[%clk 0:01:19.7]} 23. c5 {[%clk 0:02:02.8]} 23... Nd7
{[%clk 0:01:08.7]} 24. Rc1 {[%clk 0:01:58.9]} 24... e5 {[%clk 0:01:04.3]} 25.
fxe5 {[%clk 0:01:56.6]} 25... Nxe5 {[%clk 0:01:05.2]} 26. Rhe1 {[%clk
0:01:50.9]} 26... Nxd3 {[%clk 0:00:39]} 27. Qxd3 {[%clk 0:01:51.8]} 27... Qe4
{[%clk 0:00:38.8]} 28. Qxe4 {[%clk 0:01:44.3]} 28... dxe4 {[%clk 0:00:39.7]} 29.
Rcd1 {[%clk 0:01:32.1]} 29... Bc6 {[%clk 0:00:39.1]} 30. Rd6 {[%clk 0:01:27.9]}
30... Rf6 {[%clk 0:00:38.8]} 31. b3 {[%clk 0:01:14.5]} 31... Kf7 {[%clk
0:00:38.8]} 32. Kb2 {[%clk 0:01:13.8]} 32... Rxd6 {[%clk 0:00:34.5]} 33. cxd6
{[%clk 0:01:14.7]} 33... Ke6 {[%clk 0:00:31.2]} 34. Rd1 {[%clk 0:01:15]} 34...
a6 {[%clk 0:00:30.4]} 35. b4 {[%clk 0:01:11.9]} 35... Rd8 {[%clk 0:00:29.9]} 36.
Bc5 {[%clk 0:01:11.8]} 36... Bd5 {[%clk 0:00:28.2]} 37. a3 {[%clk 0:01:09.8]}
37... g5 {[%clk 0:00:25.8]} 38. Kc3 {[%clk 0:01:07.7]} 38... Bc6 {[%clk
0:00:26.1]} 39. Rf1 {[%clk 0:01:03.7]} 39... h5 {[%clk 0:00:24.3]} 40. Kd4
{[%clk 0:01:02]} 40... Ra8 {[%clk 0:00:22.1]} 41. Rb1 {[%clk 0:00:55.8]} 41...
Rf8 {[%clk 0:00:19.5]} 42. Ke3 {[%clk 0:00:55.2]} 42... Rd8 {[%clk 0:00:19.6]}
43. Ra1 {[%clk 0:00:55.4]} 43... Rb8 {[%clk 0:00:18]} 44. Rf1 {[%clk 0:00:50.9]}
44... Re8 {[%clk 0:00:18]} 45. g3 {[%clk 0:00:49.7]} 45... Ra8 {[%clk
0:00:18.3]} 46. Ra1 {[%clk 0:00:49.7]} 46... a5 {[%clk 0:00:17.4]} 47. Rc1
{[%clk 0:00:44.8]} 47... axb4 {[%clk 0:00:17.4]} 48. Bxb4 {[%clk 0:00:45.7]}
48... Bd7 {[%clk 0:00:17.6]} 49. Rc5 {[%clk 0:00:45.3]} 49... Re8 {[%clk
0:00:15.8]} 50. Rxg5 {[%clk 0:00:44.8]} 50... Bc6 {[%clk 0:00:14.3]} 51. Rxh5
{[%clk 0:00:43.6]} 51... Rf8 {[%clk 0:00:15]} 52. Rh6+ {[%clk 0:00:42.5]} 52...
Kd7 {[%clk 0:00:15.2]} 53. Rh7+ {[%clk 0:00:42.9]} 53... Kd8 {[%clk 0:00:14.1]}
54. Rc7 {[%clk 0:00:41]} 54... Rf3+ {[%clk 0:00:12.6]} 55. Kd4 {[%clk
0:00:40.6]} 55... Rd3+ {[%clk 0:00:12.7]} 56. Ke5 {[%clk 0:00:40.6]} 56... e3
{[%clk 0:00:13]} 57. Rxc6 {[%clk 0:00:38.5]} 57... e2 {[%clk 0:00:13.5]} 58. Rc4
{[%clk 0:00:33.2]} 58... Re3+ {[%clk 0:00:12.4]} 59. Re4 {[%clk 0:00:33.3]} 1-0

[Event "*** Titled Tuesday Blitz"]
[Site "Chess.com"]
[Date "2020.04.21"]
[Round "8"]
[White "petincash"]
[Black "JulAnt"]
[Result "1/2-1/2"]
[WhiteElo "2345"]
[BlackElo "2481"]
[TimeControl "180+1"]
[EndTime "11:39:21 PDT"]
[Termination "Game drawn by repetition"]

1. e4 {[%clk 0:02:53.7]} 1... c5 {[%clk 0:02:59.8]} 2. Nc3 {[%clk 0:02:51.4]}
2... e6 {[%clk 0:02:59]} 3. Nf3 {[%clk 0:02:50.4]} 3... d6 {[%clk 0:02:58.6]} 4.
d4 {[%clk 0:02:50]} 4... cxd4 {[%clk 0:02:59.5]} 5. Nxd4 {[%clk 0:02:50.8]} 5...
Nf6 {[%clk 0:02:59.8]} 6. g4 {[%clk 0:02:41.2]} 6... h6 {[%clk 0:02:58.8]} 7. h4
{[%clk 0:02:35.4]} 7... Nc6 {[%clk 0:02:55.3]} 8. Nxc6 {[%clk 0:02:23]} 8...
bxc6 {[%clk 0:02:53.2]} 9. Be3 {[%clk 0:02:20]} 9... e5 {[%clk 0:02:52.4]} 10.
Rg1 {[%clk 0:02:11.2]} 10... Be6 {[%clk 0:02:50.9]} 11. g5 {[%clk 0:02:07.9]}
11... hxg5 {[%clk 0:02:49.6]} 12. hxg5 {[%clk 0:02:08.5]} 12... Nd7 {[%clk
0:02:49.4]} 13. Be2 {[%clk 0:01:48.5]} 13... Rb8 {[%clk 0:02:44.1]} 14. b3
{[%clk 0:01:23.9]} 14... Qa5 {[%clk 0:02:39.2]} 15. Bd2 {[%clk 0:01:11.6]} 15...
Qc7 {[%clk 0:02:36.5]} 16. g6 {[%clk 0:01:08]} 16... fxg6 {[%clk 0:02:25.2]} 17.
Bg4 {[%clk 0:01:07.6]} 17... Bf7 {[%clk 0:02:21.3]} 18. Qf3 {[%clk 0:01:04.1]}
18... Nf6 {[%clk 0:02:18.6]} 19. Bh3 {[%clk 0:00:50.6]} 19... Be7 {[%clk
0:02:16.6]} 20. Rd1 {[%clk 0:00:44.4]} 20... d5 {[%clk 0:02:08.3]} 21. Bf1
{[%clk 0:00:37]} 21... d4 {[%clk 0:02:01]} 22. Na4 {[%clk 0:00:31]} 22... Bb4
{[%clk 0:01:44.7]} 23. Nb2 {[%clk 0:00:27.8]} 23... Be7 {[%clk 0:01:13.3]} 24.
Bc4 {[%clk 0:00:26.6]} 24... Rh4 {[%clk 0:01:00.1]} 25. Bxf7+ {[%clk 0:00:24.9]}
25... Kxf7 {[%clk 0:01:01]} 26. Bg5 {[%clk 0:00:21.4]} 26... Rh5 {[%clk
0:00:36.1]} 27. Nd3 {[%clk 0:00:18.2]} 27... Rbh8 {[%clk 0:00:30.6]} 28. Ke2
{[%clk 0:00:17.1]} 28... Rh3 {[%clk 0:00:29.9]} 29. Rg3 {[%clk 0:00:15.3]} 29...
Rh2 {[%clk 0:00:26.6]} 30. Rdg1 {[%clk 0:00:13.8]} 30... Ke8 {[%clk 0:00:26.4]}
31. Bxf6 {[%clk 0:00:13.6]} 31... Bxf6 {[%clk 0:00:27.3]} 32. Rxg6 {[%clk
0:00:13.9]} 32... Qe7 {[%clk 0:00:21]} 33. Qf5 {[%clk 0:00:13.5]} 33... R8h5
{[%clk 0:00:19.6]} 34. Qc8+ {[%clk 0:00:12.7]} 34... Kf7 {[%clk 0:00:20]} 35.
Qxc6 {[%clk 0:00:12.3]} 35... Kg8 {[%clk 0:00:19.3]} 36. Qd5+ {[%clk 0:00:12.1]}
36... Kh7 {[%clk 0:00:19.4]} 37. b4 {[%clk 0:00:11.4]} 37... Qc7 {[%clk
0:00:19]} 38. Qc5 {[%clk 0:00:08.5]} 38... Qd7 {[%clk 0:00:18.3]} 39. R6g4
{[%clk 0:00:07.8]} 39... Rh6 {[%clk 0:00:15.7]} 40. Qd5 {[%clk 0:00:06.9]} 40...
Qa4 {[%clk 0:00:14.5]} 41. Qb3 {[%clk 0:00:06.4]} 41... Qc6 {[%clk 0:00:14.3]}
42. b5 {[%clk 0:00:05.4]} 42... Qb7 {[%clk 0:00:13.3]} 43. a4 {[%clk 0:00:04.8]}
43... Qc7 {[%clk 0:00:13.3]} 44. R1g2 {[%clk 0:00:04.2]} 44... Rh1 {[%clk
0:00:13]} 45. Rg1 {[%clk 0:00:04]} 45... R1h2 {[%clk 0:00:13.4]} 46. Qa2 {[%clk
0:00:02.7]} 46... Qc3 {[%clk 0:00:12.6]} 47. Qb3 {[%clk 0:00:03.1]} 47... Qc7
{[%clk 0:00:11]} 1/2-1/2

[Event "*** Titled Tuesday Blitz"]
[Site "Chess.com"]
[Date "2020.04.21"]
[Round "8"]
[White "Vamostodorecto"]
[Black "DanielTitichoca"]
[Result "1-0"]
[WhiteElo "2478"]
[BlackElo "2328"]
[TimeControl "180+1"]
[EndTime "11:39:22 PDT"]
[Termination "Vamostodorecto won by checkmate"]

1. d4 {[%clk 0:03:00.9]} 1... Nf6 {[%clk 0:02:59.4]} 2. c4 {[%clk 0:03:00.9]}
2... g6 {[%clk 0:02:58.2]} 3. Nc3 {[%clk 0:03:00.4]} 3... Bg7 {[%clk 0:02:58.9]}
4. e4 {[%clk 0:03:00]} 4... d6 {[%clk 0:02:59.8]} 5. Be2 {[%clk 0:03:00.4]} 5...
O-O {[%clk 0:03:00.2]} 6. Nf3 {[%clk 0:03:00.9]} 6... e5 {[%clk 0:02:59.9]} 7.
O-O {[%clk 0:03:01.4]} 7... Nc6 {[%clk 0:02:58.7]} 8. d5 {[%clk 0:03:01.5]} 8...
Ne7 {[%clk 0:02:58.7]} 9. Ne1 {[%clk 0:03:02.3]} 9... Ne8 {[%clk 0:02:55.9]} 10.
Be3 {[%clk 0:03:02.8]} 10... f5 {[%clk 0:02:56.2]} 11. f3 {[%clk 0:03:03.4]}
11... f4 {[%clk 0:02:56.6]} 12. Bf2 {[%clk 0:03:04]} 12... g5 {[%clk 0:02:56.5]}
13. c5 {[%clk 0:03:04.6]} 13... Ng6 {[%clk 0:02:54.8]} 14. Rc1 {[%clk 0:03:03]}
14... Rf7 {[%clk 0:02:54]} 15. Nb5 {[%clk 0:03:01.3]} 15... Bf8 {[%clk
0:02:51.8]} 16. cxd6 {[%clk 0:03:00.9]} 16... cxd6 {[%clk 0:02:52.7]} 17. a4
{[%clk 0:02:57.2]} 17... h5 {[%clk 0:02:13.8]} 18. Nxa7 {[%clk 0:02:55.4]} 18...
Rxa7 {[%clk 0:02:09.1]} 19. Bxa7 {[%clk 0:02:56.3]} 19... Rg7 {[%clk 0:02:05.4]}
20. Kh1 {[%clk 0:02:43]} 20... g4 {[%clk 0:01:32.8]} 21. Bb6 {[%clk 0:02:42]}
21... Qxb6 {[%clk 0:01:27.9]} 22. Rxc8 {[%clk 0:02:41.2]} 22... Nf6 {[%clk
0:01:27.9]} 23. Qc2 {[%clk 0:02:36.8]} 23... Nh4 {[%clk 0:01:21]} 24. Nd3 {[%clk
0:01:45.7]} 24... Nh7 {[%clk 0:00:42]} 25. Bd1 {[%clk 0:01:21.5]} 25... g3
{[%clk 0:00:24.6]} 26. Rb8 {[%clk 0:00:38.4]} 26... gxh2 {[%clk 0:00:19]} 27.
Qf2 {[%clk 0:00:38]} 27... Qxf2 {[%clk 0:00:14.9]} 28. Rxf2 {[%clk 0:00:37.9]}
28... Ng5 {[%clk 0:00:12.5]} 29. Kxh2 {[%clk 0:00:36.5]} 29... Kf7 {[%clk
0:00:11]} 30. Rxb7+ {[%clk 0:00:35.2]} 30... Be7 {[%clk 0:00:11.4]} 31. a5
{[%clk 0:00:34.8]} 31... Ng6 {[%clk 0:00:09.6]} 32. a6 {[%clk 0:00:34.5]} 32...
h4 {[%clk 0:00:09.7]} 33. a7 {[%clk 0:00:33.9]} 33... h3 {[%clk 0:00:10.6]} 34.
a8=Q {[%clk 0:00:33.6]} 34... hxg2 {[%clk 0:00:10.7]} 35. Rxg2 {[%clk
0:00:32.8]} 35... Nh4 {[%clk 0:00:09.6]} 36. Rxe7+ {[%clk 0:00:30]} 36... Kxe7
{[%clk 0:00:09.1]} 37. Qb7+ {[%clk 0:00:30.5]} 37... Kf6 {[%clk 0:00:09.5]} 38.
Qxg7+ {[%clk 0:00:29.5]} 38... Kxg7 {[%clk 0:00:10.2]} 39. Rxg5+ {[%clk
0:00:30.1]} 39... Kf6 {[%clk 0:00:11.1]} 40. Rg4 {[%clk 0:00:30.1]} 40... Ng6
{[%clk 0:00:12]} 41. Rxg6+ {[%clk 0:00:30.1]} 41... Kxg6 {[%clk 0:00:11.8]} 42.
Nxe5+ {[%clk 0:00:30.5]} 42... Kg5 {[%clk 0:00:12.7]} 43. Nd3 {[%clk 0:00:30.2]}
43... Kh4 {[%clk 0:00:12.6]} 44. Nxf4 {[%clk 0:00:29.4]} 44... Kg5 {[%clk
0:00:12.3]} 45. Ne2 {[%clk 0:00:29.8]} 45... Kh4 {[%clk 0:00:13.2]} 46. b4
{[%clk 0:00:29.7]} 46... Kg5 {[%clk 0:00:13.1]} 47. Kg3 {[%clk 0:00:29.8]} 47...
Kf6 {[%clk 0:00:13.3]} 48. b5 {[%clk 0:00:30.7]} 48... Ke5 {[%clk 0:00:14.2]}
49. b6 {[%clk 0:00:31.2]} 49... Kf6 {[%clk 0:00:14.7]} 50. b7 {[%clk 0:00:31.5]}
50... Ke5 {[%clk 0:00:15.6]} 51. b8=Q {[%clk 0:00:31.6]} 51... Kf6 {[%clk
0:00:16.5]} 52. Qxd6+ {[%clk 0:00:31.8]} 52... Kg5 {[%clk 0:00:16.7]} 53. Qf4+
{[%clk 0:00:31.4]} 53... Kh5 {[%clk 0:00:17.6]} 54. Qg4+ {[%clk 0:00:30.2]}
54... Kh6 {[%clk 0:00:17.5]} 55. d6 {[%clk 0:00:26.9]} 55... Kh7 {[%clk
0:00:18.4]} 56. d7 {[%clk 0:00:27.1]} 56... Kh6 {[%clk 0:00:19.3]} 57. d8=Q
{[%clk 0:00:25.2]} 57... Kh7 {[%clk 0:00:20.2]} 58. Qdh4# {[%clk 0:00:25.3]} 1-0

[Event "*** Titled Tuesday Blitz"]
[Site "Chess.com"]
[Date "2020.04.21"]
[Round "8"]
[White "DanielDardha2005"]
[Black "ElGasanov"]
[Result "1-0"]
[WhiteElo "2607"]
[BlackElo "2731"]
[TimeControl "180+1"]
[EndTime "11:39:25 PDT"]
[Termination "DanielDardha2005 won on time"]

1. Nf3 {[%clk 0:02:51.4]} 1... d5 {[%clk 0:02:59.2]} 2. c4 {[%clk 0:02:50.4]}
2... d4 {[%clk 0:02:57.8]} 3. b4 {[%clk 0:02:49.3]} 3... c5 {[%clk 0:02:55.2]}
4. bxc5 {[%clk 0:02:42.9]} 4... Nc6 {[%clk 0:02:55.2]} 5. g3 {[%clk 0:02:39.1]}
5... e5 {[%clk 0:02:55.3]} 6. d3 {[%clk 0:02:38.7]} 6... Bxc5 {[%clk 0:02:54.8]}
7. Bg2 {[%clk 0:02:38.6]} 7... Nf6 {[%clk 0:02:55.4]} 8. O-O {[%clk 0:02:38.9]}
8... O-O {[%clk 0:02:55.8]} 9. Ba3 {[%clk 0:02:39.1]} 9... Nd7 {[%clk
0:02:50.8]} 10. Nfd2 {[%clk 0:02:35.9]} 10... Qe7 {[%clk 0:02:45.5]} 11. Qc1
{[%clk 0:02:29.2]} 11... f5 {[%clk 0:02:41.4]} 12. Bxc5 {[%clk 0:02:25.2]} 12...
Nxc5 {[%clk 0:02:37.4]} 13. Nb3 {[%clk 0:02:24.5]} 13... Ne6 {[%clk 0:02:28.8]}
14. Na3 {[%clk 0:02:18.5]} 14... Bd7 {[%clk 0:02:18.1]} 15. Nb5 {[%clk
0:02:06.1]} 15... a6 {[%clk 0:02:12.5]} 16. Na3 {[%clk 0:01:18.1]} 16... Ng5
{[%clk 0:02:01]} 17. c5 {[%clk 0:01:12.6]} 17... e4 {[%clk 0:01:49.3]} 18. Nc4
{[%clk 0:01:09.4]} 18... Rad8 {[%clk 0:01:33.2]} 19. Nd6 {[%clk 0:00:59.7]}
19... Be6 {[%clk 0:01:29.2]} 20. Rb1 {[%clk 0:00:45.2]} 20... b5 {[%clk
0:01:10.9]} 21. h4 {[%clk 0:00:27.6]} 21... Nf7 {[%clk 0:01:06.3]} 22. dxe4
{[%clk 0:00:27.1]} 22... Nxd6 {[%clk 0:00:40.8]} 23. cxd6 {[%clk 0:00:28]} 23...
Qxd6 {[%clk 0:00:35.6]} 24. exf5 {[%clk 0:00:28.1]} 24... Bd5 {[%clk 0:00:31.8]}
25. Qc5 {[%clk 0:00:12.3]} 25... Rxf5 {[%clk 0:00:24.9]} 26. Qxd6 {[%clk
0:00:07.1]} 26... Rxd6 {[%clk 0:00:25.8]} 27. Rbc1 {[%clk 0:00:04.7]} 27... Bxg2
{[%clk 0:00:24.2]} 28. Kxg2 {[%clk 0:00:05.6]} 28... Re5 {[%clk 0:00:19.1]} 29.
Rfe1 {[%clk 0:00:05.1]} 29... Nb4 {[%clk 0:00:16.5]} 30. a3 {[%clk 0:00:04.8]}
30... Na2 {[%clk 0:00:16.8]} 31. Rc2 {[%clk 0:00:05.2]} 31... Nc3 {[%clk
0:00:16.5]} 32. Nxd4 {[%clk 0:00:05.7]} 32... Ne4 {[%clk 0:00:12.1]} 33. Nf3
{[%clk 0:00:05]} 33... Red5 {[%clk 0:00:11.3]} 34. Rec1 {[%clk 0:00:04.8]} 34...
h6 {[%clk 0:00:11]} 35. e3 {[%clk 0:00:04]} 35... a5 {[%clk 0:00:10.6]} 36. Rb2
{[%clk 0:00:04]} 36... Rb6 {[%clk 0:00:08.4]} 37. Nd4 {[%clk 0:00:04.3]} 37...
b4 {[%clk 0:00:08.1]} 38. axb4 {[%clk 0:00:04]} 38... axb4 {[%clk 0:00:09]} 39.
Rcb1 {[%clk 0:00:03.8]} 39... Rf6 {[%clk 0:00:07]} 40. Rc1 {[%clk 0:00:02.6]}
40... Rd8 {[%clk 0:00:03.8]} 41. Rc4 {[%clk 0:00:02.4]} 41... Rdf8 {[%clk
0:00:03.3]} 42. f3 {[%clk 0:00:02.8]} 42... Nc3 {[%clk 0:00:02.9]} 43. Rcxb4
{[%clk 0:00:03]} 43... Nd1 {[%clk 0:00:03]} 44. R2b3 {[%clk 0:00:03]} 44... Rd8
{[%clk 0:00:02]} 45. Rb8 {[%clk 0:00:02.9]} 1-0

[Event "*** Titled Tuesday Blitz"]
[Site "Chess.com"]
[Date "2020.04.21"]
[Round "8"]
[White "Onwgs"]
[Black "cassoulet"]
[Result "1-0"]
[WhiteElo "2499"]
[BlackElo "2623"]
[TimeControl "180+1"]
[EndTime "11:39:25 PDT"]
[Termination "Onwgs won by resignation"]

1. e4 {[%clk 0:03:00.6]} 1... g6 {[%clk 0:03:00.9]} 2. d4 {[%clk 0:03:00.7]}
2... Bg7 {[%clk 0:03:01.2]} 3. Nc3 {[%clk 0:03:01.3]} 3... c5 {[%clk 0:03:01.7]}
4. Nf3 {[%clk 0:02:58.5]} 4... cxd4 {[%clk 0:03:01.9]} 5. Nxd4 {[%clk
0:02:58.6]} 5... Nc6 {[%clk 0:03:02.8]} 6. Be3 {[%clk 0:02:58.1]} 6... Nf6
{[%clk 0:03:02.6]} 7. f3 {[%clk 0:02:55.1]} 7... O-O {[%clk 0:03:02.2]} 8. Bc4
{[%clk 0:02:55.3]} 8... d6 {[%clk 0:02:32.2]} 9. Qd2 {[%clk 0:02:53.5]} 9...
Nxd4 {[%clk 0:02:32]} 10. Bxd4 {[%clk 0:02:53.4]} 10... Qa5 {[%clk 0:02:31]} 11.
O-O {[%clk 0:02:50.3]} 11... Qb4 {[%clk 0:02:25.7]} 12. Qd3 {[%clk 0:02:46.2]}
12... Be6 {[%clk 0:02:01.4]} 13. Bxe6 {[%clk 0:02:44.3]} 13... fxe6 {[%clk
0:02:02.3]} 14. a3 {[%clk 0:02:40.1]} 14... Qa5 {[%clk 0:01:58.1]} 15. Rad1
{[%clk 0:02:32.1]} 15... e5 {[%clk 0:01:57.8]} 16. Be3 {[%clk 0:02:31.3]} 16...
Rac8 {[%clk 0:01:57.6]} 17. Rf2 {[%clk 0:02:26.8]} 17... a6 {[%clk 0:01:57.4]}
18. Nd5 {[%clk 0:02:25.9]} 18... Nxd5 {[%clk 0:01:56.8]} 19. Qxd5+ {[%clk
0:02:26]} 19... Qxd5 {[%clk 0:01:56.5]} 20. Rxd5 {[%clk 0:02:26.9]} 20... Rc6
{[%clk 0:01:56.3]} 21. Rfd2 {[%clk 0:02:26.5]} 21... Rfc8 {[%clk 0:01:56.1]} 22.
c3 {[%clk 0:02:26.5]} 22... Kf7 {[%clk 0:01:56.3]} 23. Kf2 {[%clk 0:02:21.7]}
23... b5 {[%clk 0:01:56.4]} 24. a4 {[%clk 0:02:19.6]} 24... bxa4 {[%clk
0:01:54.4]} 25. Ra5 {[%clk 0:02:19.9]} 25... Rc4 {[%clk 0:01:48.3]} 26. Rxa6
{[%clk 0:02:19.6]} 26... Rb8 {[%clk 0:01:48.7]} 27. Ra7 {[%clk 0:02:18.2]} 27...
Ke6 {[%clk 0:01:46.6]} 28. Ke2 {[%clk 0:02:13.7]} 28... Bf6 {[%clk 0:01:45.8]}
29. Kd3 {[%clk 0:02:13.2]} 29... Rbc8 {[%clk 0:01:39.6]} 30. Rd1 {[%clk
0:02:13.5]} 30... d5 {[%clk 0:01:23.7]} 31. exd5+ {[%clk 0:02:06.5]} 31... Kxd5
{[%clk 0:01:24.6]} 32. Ra1 {[%clk 0:02:05.2]} 32... Ke6 {[%clk 0:01:08.9]} 33.
R1xa4 {[%clk 0:02:04.2]} 33... R4c6 {[%clk 0:01:05.5]} 34. R4a6 {[%clk 0:02:03]}
34... Kd6 {[%clk 0:01:05.7]} 35. Rxc6+ {[%clk 0:02:01.1]} 35... Kxc6 {[%clk
0:01:06.6]} 36. Ke4 {[%clk 0:02:00.4]} 36... Rb8 {[%clk 0:01:06.2]} 37. b4
{[%clk 0:01:57.1]} 37... Kb5 {[%clk 0:01:06.1]} 38. Rc7 {[%clk 0:01:52.8]} 38...
Ra8 {[%clk 0:01:05.1]} 39. g4 {[%clk 0:01:50.9]} 39... g5 {[%clk 0:01:02.4]} 40.
Rc5+ {[%clk 0:01:46.5]} 40... Ka4 {[%clk 0:01:01.9]} 41. Kd5 {[%clk 0:01:39.9]}
41... Kb3 {[%clk 0:01:00.8]} 42. b5 {[%clk 0:01:39]} 42... e4 {[%clk 0:00:58.7]}
43. Kxe4 {[%clk 0:01:37.2]} 43... Bxc3 {[%clk 0:00:58.6]} 44. b6 {[%clk
0:01:37.4]} 44... Bb4 {[%clk 0:00:51.2]} 45. Rc7 {[%clk 0:01:32.2]} 45... Bd6
{[%clk 0:00:50.6]} 46. Rd7 {[%clk 0:01:32.3]} 46... Kc4 {[%clk 0:00:49]} 47.
Bxg5 {[%clk 0:01:31.6]} 47... Kb5 {[%clk 0:00:46.4]} 48. b7 {[%clk 0:01:30.9]}
48... Re8 {[%clk 0:00:42.8]} 49. Kd5 {[%clk 0:01:17.7]} 49... Kb6 {[%clk
0:00:42.3]} 50. Bxe7 {[%clk 0:01:01.5]} 50... Bxh2 {[%clk 0:00:41.9]} 51. Bc5+
{[%clk 0:00:57.3]} 51... Ka6 {[%clk 0:00:41.9]} 52. Bd6 {[%clk 0:00:53.9]} 52...
Bxd6 {[%clk 0:00:37.2]} 53. Kxd6 {[%clk 0:00:54.1]} 53... Ka7 {[%clk 0:00:37.6]}
54. Rxh7 {[%clk 0:00:54.6]} 54... Rf8 {[%clk 0:00:37.5]} 55. Rh3 {[%clk
0:00:49.2]} 55... Kxb7 {[%clk 0:00:36.9]} 56. g5 {[%clk 0:00:49.8]} 56... Kc8
{[%clk 0:00:34.9]} 57. g6 {[%clk 0:00:49.9]} 57... Kd8 {[%clk 0:00:35.2]} 58.
Ke6 {[%clk 0:00:48.2]} 58... Ke8 {[%clk 0:00:34.9]} 59. g7 {[%clk 0:00:45.7]}
59... Rg8 {[%clk 0:00:30.9]} 60. Rh8 {[%clk 0:00:36.9]} 1-0

[Event "*** Titled Tuesday Blitz"]
[Site "Chess.com"]
[Date "2020.04.21"]
[Round "8"]
[White "SlavenPastar"]
[Black "Hippotaner"]
[Result "1-0"]
[WhiteElo "2387"]
[BlackElo "2220"]
[TimeControl "180+1"]
[EndTime "11:39:26 PDT"]
[Termination "SlavenPastar won by resignation"]

1. d4 {[%clk 0:02:59.3]} 1... Nf6 {[%clk 0:02:56.2]} 2. c4 {[%clk 0:02:59.8]}
2... c5 {[%clk 0:02:49.5]} 3. d5 {[%clk 0:02:59.2]} 3... d6 {[%clk 0:02:43.5]}
4. Nf3 {[%clk 0:02:58.2]} 4... g6 {[%clk 0:02:43.3]} 5. Nc3 {[%clk 0:02:57.8]}
5... Bg7 {[%clk 0:02:42.7]} 6. Bg5 {[%clk 0:02:58.4]} 6... O-O {[%clk
0:02:40.3]} 7. e3 {[%clk 0:02:58.7]} 7... a6 {[%clk 0:02:33.3]} 8. Be2 {[%clk
0:02:56.7]} 8... Nbd7 {[%clk 0:02:31.3]} 9. Nd2 {[%clk 0:02:54.2]} 9... h6
{[%clk 0:02:30.6]} 10. Bh4 {[%clk 0:02:54]} 10... Ne8 {[%clk 0:02:26.3]} 11. O-O
{[%clk 0:02:46]} 11... Rb8 {[%clk 0:02:26.2]} 12. a4 {[%clk 0:02:45.8]} 12... f5
{[%clk 0:02:17.5]} 13. f4 {[%clk 0:02:43.8]} 13... Ndf6 {[%clk 0:02:10.7]} 14.
Bd3 {[%clk 0:02:38.9]} 14... Bd7 {[%clk 0:02:01.3]} 15. Qc2 {[%clk 0:02:33.2]}
15... e5 {[%clk 0:02:00.3]} 16. dxe6 {[%clk 0:02:15]} 16... Bxe6 {[%clk
0:01:58.7]} 17. e4 {[%clk 0:02:12.1]} 17... Qd7 {[%clk 0:01:35]} 18. Rad1 {[%clk
0:02:08.3]} 18... Ng4 {[%clk 0:01:19.2]} 19. Rf3 {[%clk 0:01:39.3]} 19... Bd4+
{[%clk 0:01:03.6]} 20. Kh1 {[%clk 0:01:33.9]} 20... Ne3 {[%clk 0:01:03.5]} 21.
Qb1 {[%clk 0:01:24.4]} 21... Nxd1 {[%clk 0:01:02.9]} 22. Nxd1 {[%clk 0:01:19.6]}
22... Nf6 {[%clk 0:00:52.6]} 23. Rg3 {[%clk 0:01:12.4]} 23... Kh7 {[%clk
0:00:46.4]} 24. exf5 {[%clk 0:00:57.6]} 24... Bxf5 {[%clk 0:00:45]} 25. Nf3
{[%clk 0:00:54.4]} 25... Bxd3 {[%clk 0:00:36.9]} 26. Qxd3 {[%clk 0:00:55.3]}
26... Qf5 {[%clk 0:00:37.3]} 27. Nxd4 {[%clk 0:00:48.5]} 27... Qxd3 {[%clk
0:00:36.7]} 28. Rxd3 {[%clk 0:00:48.7]} 28... cxd4 {[%clk 0:00:36.5]} 29. Rxd4
{[%clk 0:00:49.2]} 29... Ng4 {[%clk 0:00:20.2]} 30. h3 {[%clk 0:00:45]} 30...
Nf6 {[%clk 0:00:18.8]} 31. Nc3 {[%clk 0:00:42]} 31... Rbd8 {[%clk 0:00:17.9]}
32. Nd5 {[%clk 0:00:32.6]} 32... g5 {[%clk 0:00:17.7]} 33. fxg5 {[%clk
0:00:30.1]} 33... Nxd5 {[%clk 0:00:17.9]} 34. g6+ {[%clk 0:00:27]} 34... Kxg6
{[%clk 0:00:18.4]} 35. Bxd8 {[%clk 0:00:27.9]} 35... Ne3 {[%clk 0:00:16.1]} 36.
Rxd6+ {[%clk 0:00:26]} 36... Kf5 {[%clk 0:00:16.5]} 37. b3 {[%clk 0:00:19.8]}
37... Ke5 {[%clk 0:00:13.6]} 38. Bc7 {[%clk 0:00:17.5]} 38... Rf1+ {[%clk
0:00:13.2]} 39. Kh2 {[%clk 0:00:17.4]} 39... Ke4 {[%clk 0:00:13.8]} 40. Re6+
{[%clk 0:00:11.9]} 40... Kd3 {[%clk 0:00:13.5]} 41. a5 {[%clk 0:00:08.4]} 41...
Rf2 {[%clk 0:00:13.4]} 42. Rg6 {[%clk 0:00:08.6]} 42... Kc3 {[%clk 0:00:12.9]}
43. Rg3 {[%clk 0:00:08.6]} 43... Re2 {[%clk 0:00:12.3]} 44. Bf4 {[%clk
0:00:08.1]} 44... Kxb3 {[%clk 0:00:06.2]} 45. Rxe3+ {[%clk 0:00:08]} 45... Rxe3
{[%clk 0:00:06.6]} 46. Bxe3 {[%clk 0:00:08.9]} 46... Kxc4 {[%clk 0:00:07.5]} 47.
Bb6 {[%clk 0:00:09.3]} 47... Kd5 {[%clk 0:00:07.9]} 48. g4 {[%clk 0:00:09.8]}
48... Ke6 {[%clk 0:00:08.4]} 49. Kg3 {[%clk 0:00:10.7]} 49... Kf7 {[%clk
0:00:09]} 50. h4 {[%clk 0:00:11.6]} 50... Kg7 {[%clk 0:00:08.7]} 51. Kf4 {[%clk
0:00:12.5]} 51... Kf7 {[%clk 0:00:09.6]} 52. g5 {[%clk 0:00:13]} 1-0